[Event "*** Titled Tuesday Blitz"]
[Site "Chess.com"]
[Date "2018.08.07"]
[Round "3"]
[White "Adham_Fawzy"]
[Black "BlackBoarder"]
[Result "0-1"]
[WhiteElo "2543"]
[BlackElo "2391"]
[TimeControl "180+2"]
[EndTime "13:36:55 PDT"]
[Termination "BlackBoarder won by checkmate"]

1. e4 {[%clk 0:03:01.8]} 1... e6 {[%clk 0:03:01.2]} 2. d4 {[%clk 0:03:02.3]}
2... d5 {[%clk 0:03:02.6]} 3. Nc3 {[%clk 0:03:03.9]} 3... Bb4 {[%clk 0:03:03.5]}
4. exd5 {[%clk 0:03:04.9]} 4... exd5 {[%clk 0:03:05.4]} 5. Bd3 {[%clk
0:03:06.4]} 5... Nf6 {[%clk 0:03:04.3]} 6. Qf3 {[%clk 0:03:06.1]} 6... c6 {[%clk
0:02:56]} 7. Ne2 {[%clk 0:03:06.9]} 7... O-O {[%clk 0:02:56.3]} 8. Bg5 {[%clk
0:03:05.8]} 8... Bg4 {[%clk 0:02:30.9]} 9. Qg3 {[%clk 0:02:38.8]} 9... Nbd7
{[%clk 0:02:12.1]} 10. f3 {[%clk 0:02:28.6]} 10... Bh5 {[%clk 0:02:03.5]} 11.
O-O-O {[%clk 0:02:27.8]} 11... Bg6 {[%clk 0:02:01.7]} 12. h4 {[%clk 0:02:28.8]}
12... Bxd3 {[%clk 0:01:51.9]} 13. Rxd3 {[%clk 0:02:30.7]} 13... Kh8 {[%clk
0:01:35.8]} 14. Nf4 {[%clk 0:02:17.5]} 14... h6 {[%clk 0:01:31.4]} 15. Qh3
{[%clk 0:01:44.8]} 15... Qa5 {[%clk 0:01:16.7]} 16. Kb1 {[%clk 0:01:39.3]} 16...
Rae8 {[%clk 0:01:10.3]} 17. Qf5 {[%clk 0:01:36.9]} 17... Bxc3 {[%clk 0:00:46.8]}
18. Rxc3 {[%clk 0:01:37.2]} 18... Qb4 {[%clk 0:00:35.7]} 19. Bxf6 {[%clk
0:00:50.7]} 19... Nxf6 {[%clk 0:00:35.7]} 20. Rd3 {[%clk 0:00:35.6]} 20... Re1+
{[%clk 0:00:29.3]} 21. Rd1 {[%clk 0:00:34.3]} 21... Rxh1 {[%clk 0:00:29.8]} 22.
Rxh1 {[%clk 0:00:18.6]} 22... Qxd4 {[%clk 0:00:31]} 23. g4 {[%clk 0:00:19.6]}
23... g6 {[%clk 0:00:22]} 24. Nxg6+ {[%clk 0:00:18.6]} 24... fxg6 {[%clk
0:00:23.9]} 25. Qxg6 {[%clk 0:00:19.4]} 25... Nh7 {[%clk 0:00:22.5]} 26. Qxh6
{[%clk 0:00:19.8]} 26... Rxf3 {[%clk 0:00:19.6]} 27. Re1 {[%clk 0:00:20.3]}
27... Qg7 {[%clk 0:00:14]} 28. Re8+ {[%clk 0:00:19.6]} 28... Rf8 {[%clk
0:00:14.9]} 29. Rxf8+ {[%clk 0:00:20.1]} 29... Qxf8 {[%clk 0:00:16]} 30. Qc1
{[%clk 0:00:19.6]} 30... Nf6 {[%clk 0:00:14.9]} 31. Qf4 {[%clk 0:00:19]} 31...
Nh7 {[%clk 0:00:12.5]} 32. Qc1 {[%clk 0:00:14.7]} 32... Qf3 {[%clk 0:00:13.3]}
33. Qg1 {[%clk 0:00:13.2]} 33... c5 {[%clk 0:00:09.7]} 34. a3 {[%clk 0:00:14.4]}
34... b6 {[%clk 0:00:10.7]} 35. g5 {[%clk 0:00:15.5]} 35... Kg7 {[%clk
0:00:11.8]} 36. Qe1 {[%clk 0:00:15.1]} 36... Qe4 {[%clk 0:00:12.5]} 37. Qg3
{[%clk 0:00:16.2]} 37... Qh1+ {[%clk 0:00:12.1]} 38. Ka2 {[%clk 0:00:16.9]}
38... Qe4 {[%clk 0:00:13.3]} 39. Kb1 {[%clk 0:00:17.6]} 39... Nf8 {[%clk
0:00:13.9]} 40. Qd6 {[%clk 0:00:18.2]} 40... Qxh4 {[%clk 0:00:13]} 41. Qe7+
{[%clk 0:00:17.9]} 41... Kg8 {[%clk 0:00:13.7]} 42. Qf6 {[%clk 0:00:18.4]} 42...
Qh1+ {[%clk 0:00:10.8]} 43. Ka2 {[%clk 0:00:19.2]} 43... Qh7 {[%clk 0:00:11.9]}
44. Kb1 {[%clk 0:00:18.9]} 44... Qg7 {[%clk 0:00:12.2]} 45. Qd6 {[%clk
0:00:19.1]} 45... d4 {[%clk 0:00:12.5]} 46. Qd5+ {[%clk 0:00:20.1]} 46... Qf7
{[%clk 0:00:13.8]} 47. Qe5 {[%clk 0:00:21.4]} 47... Qf1+ {[%clk 0:00:14.6]} 48.
Ka2 {[%clk 0:00:22]} 48... Qf7+ {[%clk 0:00:15.8]} 49. Kb1 {[%clk 0:00:23.2]}
49... Ne6 {[%clk 0:00:16.6]} 50. Qb8+ {[%clk 0:00:23]} 50... Kh7 {[%clk
0:00:16.8]} 51. Qc8 {[%clk 0:00:23.3]} 51... Nxg5 {[%clk 0:00:16.8]} 52. Qg4
{[%clk 0:00:24.1]} 52... Kg6 {[%clk 0:00:18]} 53. b3 {[%clk 0:00:24.7]} 53... a5
{[%clk 0:00:19]} 54. a4 {[%clk 0:00:25.7]} 54... Qf6 {[%clk 0:00:20.1]} 55. Ka2
{[%clk 0:00:25.6]} 55... Kf7 {[%clk 0:00:21.2]} 56. Qd7+ {[%clk 0:00:26.3]}
56... Qe7 {[%clk 0:00:21.9]} 57. Qd5+ {[%clk 0:00:27.5]} 57... Ne6 {[%clk
0:00:22.9]} 58. Qf5+ {[%clk 0:00:28.4]} 58... Qf6 {[%clk 0:00:24.4]} 59. Qh7+
{[%clk 0:00:29.3]} 59... Ng7 {[%clk 0:00:23.5]} 60. Qe4 {[%clk 0:00:30.3]} 60...
Qe6 {[%clk 0:00:24.5]} 61. Qb7+ {[%clk 0:00:31.1]} 61... Kf6 {[%clk 0:00:25.1]}
62. Qf3+ {[%clk 0:00:32]} 62... Nf5 {[%clk 0:00:26.2]} 63. Qh5 {[%clk
0:00:32.8]} 63... Ke5 {[%clk 0:00:27.2]} 64. Qe2+ {[%clk 0:00:33.2]} 64... Ne3
{[%clk 0:00:27.9]} 65. Kb2 {[%clk 0:00:33.4]} 65... Qf5 {[%clk 0:00:28.7]} 66.
Qh2+ {[%clk 0:00:32.1]} 66... Kd5 {[%clk 0:00:28.1]} 67. Qh1+ {[%clk 0:00:32.8]}
67... Kd6 {[%clk 0:00:23.9]} 68. Qh2+ {[%clk 0:00:33.6]} 68... Kc6 {[%clk
0:00:23.7]} 69. Qh1+ {[%clk 0:00:34.2]} 69... Kc7 {[%clk 0:00:24]} 70. Qh2+
{[%clk 0:00:34.6]} 70... Kb7 {[%clk 0:00:24.7]} 71. Qd2 {[%clk 0:00:32.6]} 71...
Qxc2+ {[%clk 0:00:24.3]} 72. Qxc2 {[%clk 0:00:33.8]} 72... Nxc2 {[%clk
0:00:26.2]} 73. Kxc2 {[%clk 0:00:35.7]} 73... Kc6 {[%clk 0:00:27.7]} 74. Kd3
{[%clk 0:00:37.4]} 74... Kd5 {[%clk 0:00:29.2]} 75. Kd2 {[%clk 0:00:39.2]} 75...
c4 {[%clk 0:00:30.4]} 76. Ke2 {[%clk 0:00:41]} 76... cxb3 {[%clk 0:00:31.6]} 77.
Kd3 {[%clk 0:00:42.8]} 77... Kc5 {[%clk 0:00:32.6]} 78. Kd2 {[%clk 0:00:44.2]}
78... Kb4 {[%clk 0:00:33.9]} 79. Kc1 {[%clk 0:00:46.1]} 79... Kxa4 {[%clk
0:00:34.7]} 80. Kb2 {[%clk 0:00:48]} 80... Kb4 {[%clk 0:00:36.3]} 81. Kb1 {[%clk
0:00:49.9]} 81... a4 {[%clk 0:00:38.2]} 82. Kc1 {[%clk 0:00:51.5]} 82... a3
{[%clk 0:00:39.5]} 83. Kb1 {[%clk 0:00:53.4]} 83... Kc3 {[%clk 0:00:40.9]} 84.
Ka1 {[%clk 0:00:55.3]} 84... d3 {[%clk 0:00:42.1]} 85. Kb1 {[%clk 0:00:57.2]}
85... d2 {[%clk 0:00:43.6]} 86. Ka1 {[%clk 0:00:58.1]} 86... d1=Q# {[%clk
0:00:45]} 0-1

[Event "*** Titled Tuesday Blitz"]
[Site "Chess.com"]
[Date "2018.08.07"]
[Round "3"]
[White "JoakimVonAnd"]
[Black "Maili15"]
[Result "1/2-1/2"]
[WhiteElo "2390"]
[BlackElo "2246"]
[TimeControl "180+2"]
[EndTime "13:37:12 PDT"]
[Termination "Game drawn by agreement"]

1. d4 {[%clk 0:03:01.9]} 1... d5 {[%clk 0:03:00.2]} 2. c4 {[%clk 0:03:01.5]}
2... e6 {[%clk 0:03:00.7]} 3. Nc3 {[%clk 0:03:02.1]} 3... Nf6 {[%clk 0:03:01.3]}
4. cxd5 {[%clk 0:03:03.4]} 4... exd5 {[%clk 0:03:01.9]} 5. Bg5 {[%clk
0:03:04.3]} 5... Be7 {[%clk 0:03:02.9]} 6. e3 {[%clk 0:03:05.5]} 6... c6 {[%clk
0:03:03.3]} 7. Bd3 {[%clk 0:03:05]} 7... Nbd7 {[%clk 0:03:02.8]} 8. Nf3 {[%clk
0:03:04.4]} 8... O-O {[%clk 0:03:02.9]} 9. O-O {[%clk 0:03:05.4]} 9... Re8
{[%clk 0:03:03.3]} 10. Rb1 {[%clk 0:03:06.4]} 10... Nf8 {[%clk 0:03:02.5]} 11.
b4 {[%clk 0:03:05.5]} 11... a6 {[%clk 0:03:00.2]} 12. a4 {[%clk 0:03:04.5]}
12... Ne4 {[%clk 0:02:46.8]} 13. Bxe4 {[%clk 0:02:58.6]} 13... Bxg5 {[%clk
0:02:45.2]} 14. Nxg5 {[%clk 0:02:51.7]} 14... Qxg5 {[%clk 0:02:43.4]} 15. Bd3
{[%clk 0:02:53.1]} 15... Bh3 {[%clk 0:02:36.5]} 16. Qf3 {[%clk 0:02:50.8]} 16...
Bg4 {[%clk 0:02:19]} 17. Qg3 {[%clk 0:02:49]} 17... Qh5 {[%clk 0:02:16]} 18. h3
{[%clk 0:02:45.6]} 18... Bf5 {[%clk 0:02:12.4]} 19. Bxf5 {[%clk 0:02:40.7]}
19... Qxf5 {[%clk 0:02:12.8]} 20. b5 {[%clk 0:02:41.9]} 20... axb5 {[%clk
0:02:12.7]} 21. axb5 {[%clk 0:02:42.7]} 21... Ra3 {[%clk 0:02:11.2]} 22. Rbc1
{[%clk 0:02:42.3]} 22... Ne6 {[%clk 0:02:07.6]} 23. bxc6 {[%clk 0:02:40.5]}
23... bxc6 {[%clk 0:02:08.2]} 24. Ne2 {[%clk 0:02:40.1]} 24... Ra2 {[%clk
0:01:51.7]} 25. Nc3 {[%clk 0:02:27.6]} 25... Ra3 {[%clk 0:01:51.1]} 26. Nb1
{[%clk 0:02:28]} 26... Ra1 {[%clk 0:01:50.9]} 27. Qg4 {[%clk 0:02:21.4]} 27...
Qxg4 {[%clk 0:01:21.9]} 28. hxg4 {[%clk 0:02:21.7]} 28... Rc8 {[%clk 0:01:22.6]}
29. Nd2 {[%clk 0:02:19.6]} 29... Rxc1 {[%clk 0:01:21.5]} 30. Rxc1 {[%clk
0:02:21.5]} 30... c5 {[%clk 0:01:22]} 31. dxc5 {[%clk 0:02:18.8]} 31... Rxc5
{[%clk 0:01:20.5]} 32. Rd1 {[%clk 0:02:18.7]} 32... Kf8 {[%clk 0:01:13.9]} 33.
Kf1 {[%clk 0:02:17.3]} 33... Ke7 {[%clk 0:01:07.2]} 34. f3 {[%clk 0:02:08.6]}
34... Rc3 {[%clk 0:01:00.8]} 35. Ke2 {[%clk 0:02:07.6]} 35... d4 {[%clk
0:00:57.7]} 36. exd4 {[%clk 0:01:56.8]} 36... Nxd4+ {[%clk 0:00:53.5]} 37. Kf2
{[%clk 0:01:57.5]} 37... Ne6 {[%clk 0:00:40.2]} 38. Ne4 {[%clk 0:01:51.5]} 38...
Rc2+ {[%clk 0:00:40.9]} 39. Kg3 {[%clk 0:01:52.4]} 39... h6 {[%clk 0:00:36]} 40.
Rb1 {[%clk 0:01:44.4]} 40... g6 {[%clk 0:00:24]} 41. Rb7+ {[%clk 0:01:43.7]}
41... Kf8 {[%clk 0:00:23.6]} 42. Nd6 {[%clk 0:01:39.2]} 42... Rc7 {[%clk
0:00:23.3]} 43. Rb8+ {[%clk 0:01:36.8]} 43... Ke7 {[%clk 0:00:24.4]} 44. Ne4
{[%clk 0:01:31.6]} 44... Rc2 {[%clk 0:00:22.4]} 45. Ra8 {[%clk 0:01:23.7]} 45...
f5 {[%clk 0:00:16.9]} 46. gxf5 {[%clk 0:01:12.1]} 46... gxf5 {[%clk 0:00:18.8]}
47. Ra7+ {[%clk 0:01:09]} 47... Kf8 {[%clk 0:00:18.5]} 48. Nd6 {[%clk
0:01:07.7]} 48... f4+ {[%clk 0:00:19.2]} 49. Kh2 {[%clk 0:01:01.2]} 49... Rd2
{[%clk 0:00:19.5]} 50. Ne4 {[%clk 0:00:56.6]} 50... Rc2 {[%clk 0:00:19]} 51. Rh7
{[%clk 0:00:57.1]} 51... Ng5 {[%clk 0:00:17.7]} 52. Rxh6 {[%clk 0:00:45.5]}
52... Nxf3+ {[%clk 0:00:17.1]} 53. Kh3 {[%clk 0:00:46.8]} 53... Ng1+ {[%clk
0:00:12.4]} 54. Kh2 {[%clk 0:00:44.4]} 54... Nf3+ {[%clk 0:00:13.1]} 55. Kh3
{[%clk 0:00:45.8]} 55... Ng1+ {[%clk 0:00:13.8]} 56. Kg4 {[%clk 0:00:47.2]}
56... Rxg2+ {[%clk 0:00:13.9]} 57. Kxf4 {[%clk 0:00:47.5]} 57... Rg7 {[%clk
0:00:11]} 58. Ra6 {[%clk 0:00:45.2]} 58... Kf7 {[%clk 0:00:10.2]} 59. Ng5+
{[%clk 0:00:42.3]} 59... Ke7 {[%clk 0:00:10.5]} 60. Kf5 {[%clk 0:00:42]} 60...
Rg8 {[%clk 0:00:04.2]} 61. Ra7+ {[%clk 0:00:39.2]} 61... Kd6 {[%clk 0:00:05.2]}
62. Ne4+ {[%clk 0:00:35.6]} 62... Kc6 {[%clk 0:00:06]} 63. Nf6 {[%clk
0:00:26.8]} 63... Rg2 {[%clk 0:00:05.7]} 64. Ra6+ {[%clk 0:00:23.2]} 64... Kb5
{[%clk 0:00:06.6]} 65. Re6 {[%clk 0:00:22.4]} 65... Kc5 {[%clk 0:00:06.8]} 66.
Ne4+ {[%clk 0:00:22.6]} 66... Kd4 {[%clk 0:00:08]} 67. Rd6+ {[%clk 0:00:23.1]}
67... Ke3 {[%clk 0:00:09]} 68. Ra6 {[%clk 0:00:21.3]} 68... Rc2 {[%clk
0:00:07.9]} 69. Ra3+ {[%clk 0:00:21.5]} 69... Ke2 {[%clk 0:00:09]} 70. Ke5
{[%clk 0:00:21.3]} 70... Nf3+ {[%clk 0:00:09.8]} 71. Kf4 {[%clk 0:00:21.9]}
71... Nd2 {[%clk 0:00:10.3]} 72. Ng3+ {[%clk 0:00:20.2]} 72... Kf2 {[%clk
0:00:09.5]} 73. Nh1+ {[%clk 0:00:19.3]} 73... Kg2 {[%clk 0:00:09.7]} 74. Ng3
{[%clk 0:00:17.2]} 74... Rc4+ {[%clk 0:00:09.9]} 75. Ke3 {[%clk 0:00:16.7]}
75... Nf1+ {[%clk 0:00:10.7]} 76. Nxf1 {[%clk 0:00:17]} 76... Kxf1 {[%clk
0:00:12.5]} 77. Ra1+ {[%clk 0:00:18.1]} 77... Kg2 {[%clk 0:00:13.3]} 78. Kd3
{[%clk 0:00:17.7]} 1/2-1/2

[Event "*** Titled Tuesday Blitz"]
[Site "Chess.com"]
[Date "2018.08.07"]
[Round "3"]
[White "Alexander_Moskalenko"]
[Black "Raja3401"]
[Result "1/2-1/2"]
[WhiteElo "2831"]
[BlackElo "2618"]
[TimeControl "180+2"]
[EndTime "13:37:51 PDT"]
[Termination "Game drawn by agreement"]

1. e4 {[%clk 0:03:01.9]} 1... c5 {[%clk 0:03:00.7]} 2. Nf3 {[%clk 0:03:02.3]}
2... d6 {[%clk 0:03:01.9]} 3. Bb5+ {[%clk 0:03:02.3]} 3... Nd7 {[%clk 0:03:02]}
4. d4 {[%clk 0:02:59.1]} 4... cxd4 {[%clk 0:03:01.7]} 5. Qxd4 {[%clk 0:03:01]}
5... a6 {[%clk 0:03:01.7]} 6. Bxd7+ {[%clk 0:03:01.3]} 6... Bxd7 {[%clk
0:03:03.4]} 7. c4 {[%clk 0:02:59.6]} 7... e5 {[%clk 0:02:59.4]} 8. Qd3 {[%clk
0:03:00.7]} 8... Rc8 {[%clk 0:02:59.6]} 9. Nc3 {[%clk 0:03:01.9]} 9... Qc7
{[%clk 0:02:21.3]} 10. b3 {[%clk 0:03:02.1]} 10... b5 {[%clk 0:02:22.1]} 11. Nd5
{[%clk 0:02:58.3]} 11... Qb7 {[%clk 0:02:17.7]} 12. O-O {[%clk 0:02:58.2]} 12...
Ne7 {[%clk 0:02:11.6]} 13. Nc3 {[%clk 0:02:04.3]} 13... Qc7 {[%clk 0:01:59.4]}
14. Ba3 {[%clk 0:02:00.7]} 14... bxc4 {[%clk 0:01:56.5]} 15. Qd2 {[%clk
0:02:00.4]} 15... cxb3 {[%clk 0:01:18.9]} 16. Rfc1 {[%clk 0:02:01.6]} 16... Qb7
{[%clk 0:01:11.9]} 17. Rab1 {[%clk 0:02:02.9]} 17... Be6 {[%clk 0:01:10.8]} 18.
Ng5 {[%clk 0:01:57.1]} 18... Nc6 {[%clk 0:00:55.4]} 19. Nxe6 {[%clk 0:01:58]}
19... fxe6 {[%clk 0:00:56.6]} 20. Rxb3 {[%clk 0:01:59.5]} 20... Qd7 {[%clk
0:00:43.6]} 21. Qb2 {[%clk 0:01:32]} 21... Nd4 {[%clk 0:00:29.6]} 22. Rb7 {[%clk
0:01:30.9]} 22... Rc7 {[%clk 0:00:30.8]} 23. Rxc7 {[%clk 0:00:55.2]} 23... Qxc7
{[%clk 0:00:32.7]} 24. Ne2 {[%clk 0:00:50.2]} 24... Nxe2+ {[%clk 0:00:23.8]} 25.
Qxe2 {[%clk 0:00:51]} 25... Qb7 {[%clk 0:00:24.7]} 26. Qc4 {[%clk 0:00:49.4]}
26... Kf7 {[%clk 0:00:23.2]} 27. Qc7+ {[%clk 0:00:50.2]} 27... Qxc7 {[%clk
0:00:23.6]} 28. Rxc7+ {[%clk 0:00:52.1]} 28... Kf6 {[%clk 0:00:25.1]} 29. Rd7
{[%clk 0:00:52.3]} 29... Be7 {[%clk 0:00:25.7]} 30. Bxd6 {[%clk 0:00:53.1]}
30... Bxd6 {[%clk 0:00:26.7]} 31. Rxd6 {[%clk 0:00:55]} 31... Rc8 {[%clk
0:00:24.8]} 32. g3 {[%clk 0:00:55.6]} 32... a5 {[%clk 0:00:23.3]} 33. Ra6 {[%clk
0:00:55.8]} 33... Rc4 {[%clk 0:00:23.5]} 34. Rxa5 {[%clk 0:00:55.3]} 34... Rxe4
{[%clk 0:00:24.7]} 35. h4 {[%clk 0:00:53.9]} 35... Re2 {[%clk 0:00:24.6]} 36.
Kg2 {[%clk 0:00:50.2]} 36... e4 {[%clk 0:00:23.3]} 37. Kf1 {[%clk 0:00:51.4]}
37... Rb2 {[%clk 0:00:24]} 38. Ra7 {[%clk 0:00:51.1]} 38... h5 {[%clk
0:00:22.2]} 39. Ra5 {[%clk 0:00:51]} 39... g6 {[%clk 0:00:22.8]} 40. Ke1 {[%clk
0:00:52]} 40... e5 {[%clk 0:00:23.8]} 41. Ra6+ {[%clk 0:00:44.1]} 41... Kf5
{[%clk 0:00:24.9]} 42. Kf1 {[%clk 0:00:42.1]} 42... e3 {[%clk 0:00:21.3]} 43.
fxe3 {[%clk 0:00:39.9]} 43... Ke4 {[%clk 0:00:22.8]} 44. Rxg6 {[%clk 0:00:40.2]}
44... Rxa2 {[%clk 0:00:24.3]} 45. Rg5 {[%clk 0:00:37.9]} 45... Kf3 {[%clk
0:00:25.7]} 46. Rf5+ {[%clk 0:00:37.6]} 46... Kxg3 {[%clk 0:00:26.9]} 47. Rxh5
{[%clk 0:00:35.7]} 47... e4 {[%clk 0:00:23.7]} 48. Rf5 {[%clk 0:00:36.5]} 48...
Ra1+ {[%clk 0:00:20.9]} 49. Ke2 {[%clk 0:00:37.3]} 49... Ra2+ {[%clk 0:00:22.3]}
50. Ke1 {[%clk 0:00:38.8]} 50... Ra1+ {[%clk 0:00:23.1]} 51. Kd2 {[%clk
0:00:40]} 51... Ra3 {[%clk 0:00:23.2]} 52. h5 {[%clk 0:00:39]} 52... Kg4 {[%clk
0:00:24.3]} 53. Rf4+ {[%clk 0:00:40]} 53... Kg5 {[%clk 0:00:25.8]} 54. Rxe4
{[%clk 0:00:41.5]} 54... Kxh5 {[%clk 0:00:27]} 55. Rf4 {[%clk 0:00:42.6]} 55...
Kg5 {[%clk 0:00:28.4]} 56. Rf8 {[%clk 0:00:43.1]} 56... Kg6 {[%clk 0:00:27.3]}
57. e4 {[%clk 0:00:42.4]} 57... Kg7 {[%clk 0:00:28.1]} 58. Rf1 {[%clk
0:00:41.7]} 58... Kg6 {[%clk 0:00:28.7]} 59. Ke2 {[%clk 0:00:43.2]} 59... Kg5
{[%clk 0:00:27.4]} 60. Rf5+ {[%clk 0:00:44.3]} 60... Kg6 {[%clk 0:00:28.2]} 61.
Rf8 {[%clk 0:00:46.2]} 61... Kg7 {[%clk 0:00:29.4]} 62. Rf4 {[%clk 0:00:46.1]}
62... Kg6 {[%clk 0:00:30.2]} 63. Rf5 {[%clk 0:00:46.9]} 63... Rb3 {[%clk
0:00:30.5]} 64. Kd2 {[%clk 0:00:47.6]} 64... Ra3 {[%clk 0:00:31.5]} 65. Rf1
{[%clk 0:00:47.7]} 65... Kg5 {[%clk 0:00:31]} 66. Rf8 {[%clk 0:00:48]} 66... Kg6
{[%clk 0:00:31.1]} 67. Rf1 {[%clk 0:00:44]} 67... Kg5 {[%clk 0:00:31.9]} 68. e5
{[%clk 0:00:45.6]} 68... Kg6 {[%clk 0:00:30.6]} 69. e6 {[%clk 0:00:42.6]} 69...
Ra6 {[%clk 0:00:29.1]} 70. Re1 {[%clk 0:00:43.7]} 70... Ra8 {[%clk 0:00:29.9]}
71. Kd3 {[%clk 0:00:44.5]} 71... Kf6 {[%clk 0:00:30.2]} 72. Kd4 {[%clk
0:00:45.5]} 72... Ke7 {[%clk 0:00:21.1]} 73. Ke5 {[%clk 0:00:46.3]} 73... Ra5+
{[%clk 0:00:22.2]} 74. Kf4 {[%clk 0:00:47.7]} 74... Ra6 {[%clk 0:00:23.6]} 75.
Kf5 {[%clk 0:00:48.9]} 75... Ra5+ {[%clk 0:00:25]} 76. Re5 {[%clk 0:00:50.8]}
76... Ra6 {[%clk 0:00:26.9]} 77. Rb5 {[%clk 0:00:49.7]} 77... Ra7 {[%clk
0:00:24.5]} 78. Ke5 {[%clk 0:00:50.1]} 78... Rc7 {[%clk 0:00:25.6]} 79. Ra5
{[%clk 0:00:33.8]} 79... Rb7 {[%clk 0:00:24.6]} 80. Kd5 {[%clk 0:00:34.9]} 80...
Rc7 {[%clk 0:00:25.3]} 81. Ra8 {[%clk 0:00:21.3]} 81... Rb7 {[%clk 0:00:23]} 82.
Ra5 {[%clk 0:00:22]} 82... Rc7 {[%clk 0:00:22.8]} 83. Ke5 {[%clk 0:00:23.8]}
83... Rb7 {[%clk 0:00:23]} 84. Rd5 {[%clk 0:00:25.2]} 84... Ra7 {[%clk
0:00:23.8]} 85. Kf5 {[%clk 0:00:26.7]} 85... Rb7 {[%clk 0:00:23.4]} 86. Ra5
{[%clk 0:00:27.1]} 86... Rc7 {[%clk 0:00:22.5]} 87. Rb5 {[%clk 0:00:28.4]}
1/2-1/2